[Event "FIDE Womens Grand Swiss 2021"]
[Site "Riga"]
[Date "2021.10.30"]
[Round "4.12"]
[White "Shuvalova, Polina"]
[Black "Sukandar, Irine Kharisma"]
[Result "1/2-1/2"]
[ECO "C88"]
[WhiteElo "2509"]
[BlackElo "2406"]
[Annotator "ChessBase"]
[PlyCount "139"]
[EventDate "2021.10.27"]
[EventType "swiss"]
[EventCountry "LAT"]
[Tiebreak "Cut1 Buchholz+Sonneborn-Berger (Swiss)"]
[SourceTitle "playchess.com"]
[Source "ChessBase"]
[SourceQuality "1"]
[TimeControl "40/6000+30:20/3000+30:900+30"]

1. e4 {[%emt 0:10:03]} e5 {[%emt 0:10:28]} 2. Nf3 {[%emt 0:00:05]} Nc6 {
[%emt 0:00:06]} 3. Bb5 {[%emt 0:00:05]} a6 {[%emt 0:00:18]} 4. Ba4 {[%emt 0:00:
05]} Nf6 {[%emt 0:00:26]} 5. O-O {[%emt 0:00:05]} Be7 {[%emt 0:00:05]} 6. Re1 {
[%emt 0:00:06]} b5 {[%emt 0:00:05]} 7. Bb3 {[%emt 0:00:03]} O-O {[%emt 0:00:08]
} 8. a4 {[%emt 0:00:07]} b4 {[%emt 0:00:34]} 9. d4 {[%emt 0:00:06]} d6 {
[%emt 0:00:40]} 10. dxe5 {[%emt 0:00:06]} dxe5 {[%emt 0:00:18]} 11. Nbd2 {
[%emt 0:00:07]} Bc5 {[%emt 0:00:25]} 12. a5 {[%emt 0:00:07]} Qe7 {[%emt 0:00:
44]} 13. Bd5 {[%emt 0:01:24]} Bb7 {[%emt 0:03:12]} 14. Nb3 {[%emt 0:04:36]} Ba7
{[%emt 0:07:33]} 15. Bg5 {[%emt 0:06:46]} Qd6 {[%emt 0:09:16]} 16. Bxf6 {
[%emt 0:05:56]} Qxf6 {[%emt 0:01:35]} 17. Qd3 {[%emt 0:01:04]} Rad8 {[%emt 0:
15:26]} 18. Qc4 {[%emt 0:02:03]} Rfe8 {[%emt 0:00:29]} 19. h3 {[%emt 0:12:51]}
h6 {[%emt 0:06:48]} 20. Red1 {[%emt 0:04:29]} Rd6 {[%emt 0:01:13]} 21. Rd3 {
[%emt 0:01:30]} Bc8 {[%emt 0:05:34]} 22. Rad1 {[%emt 0:02:18]} Rf8 {[%emt 0:09:
31]} 23. R1d2 {[%emt 0:02:56]} g5 {[%emt 0:05:31]} 24. Nh2 {[%emt 0:06:07]} Kg7
{[%emt 0:08:33]} 25. Rf3 {[%emt 0:11:50]} Qg6 {[%emt 0:00:12]} 26. Ng4 {
[%emt 0:03:52]} h5 {[%emt 0:05:24]} 27. Ne3 {[%emt 0:00:44]} g4 {[%emt 0:02:34]
} 28. Nf5+ {[%emt 0:02:04]} Kh8 {[%emt 0:00:53]} 29. hxg4 {[%emt 0:04:35]} hxg4
{[%emt 0:00:08]} 30. Rg3 {[%emt 0:01:06]} Bxf5 {[%emt 0:01:27]} 31. exf5 {
[%emt 0:01:03]} Qxf5 {[%emt 0:00:11]} 32. Qxg4 {[%emt 0:09:01]} Qxg4 {[%emt 0:
01:21]} 33. Rxg4 {[%emt 0:00:04]} Nd4 {[%emt 0:02:04]} 34. Nxd4 {[%emt 0:01:18]
} Bxd4 {[%emt 0:00:42]} 35. Rd3 {[%emt 0:00:41]} Rg6 {[%emt 0:01:09]} 36. Rh4+
{[%emt 0:01:26]} Kg7 {[%emt 0:00:40]} 37. c3 {[%emt 0:00:31]} bxc3 {[%emt 0:00:
52]} 38. bxc3 {[%emt 0:00:04]} Bc5 {[%emt 0:01:18]} 39. Be4 {[%emt 0:02:53]}
Be7 {[%emt 0:08:45]} 40. Rh5 {[%emt 0:02:09]} Rg4 {[%emt 0:02:37]} 41. Bf5 {
[%emt 1:03:20]} Rg5 {[%emt 0:25:35]} 42. Rxg5+ {[%emt 0:00:00]} Bxg5 {[%emt 0:
00:02]} 43. Rd7 {[%emt 0:00:00]} Rd8 {[%emt 0:01:15]} 44. Rxc7 {[%emt 0:00:00]}
Rd1+ {[%emt 0:00:10]} 45. Kh2 {[%emt 0:00:00]} Bd8 {[%emt 0:00:14]} 46. Rb7 {
[%emt 0:00:00]} Bxa5 {[%emt 0:05:00]} 47. c4 {[%emt 0:00:00]} Rd6 {[%emt 0:03:
59]} 48. Be4 {[%emt 0:00:00]} Bb6 {[%emt 0:05:06]} 49. Bd5 {[%emt 0:00:00]}
Rh6+ {[%emt 0:00:35]} 50. Kg3 {[%emt 0:00:00]} Rg6+ {[%emt 0:00:25]} 51. Kh3 {
[%emt 0:00:00]} Rh6+ {[%emt 0:00:24]} 52. Kg4 {[%emt 0:00:00]} Rg6+ {[%emt 0:
00:05]} 53. Kf5 {[%emt 0:00:00]} Rf6+ {[%emt 0:00:11]} 54. Kxe5 {[%emt 0:00:00]
} Bxf2 {[%emt 0:00:07]} 55. Rb3 {[%emt 0:00:00]} a5 {[%emt 0:07:47]} 56. Ra3 {
[%emt 0:00:00]} Bb6 {[%emt 0:01:10]} 57. Rg3+ {[%emt 0:03:38]} Rg6 {[%emt 0:00:
07]} 58. Rf3 {[%emt 0:00:25]} Bc7+ {[%emt 0:01:58]} 59. Kd4 {[%emt 0:00:06]}
Bb6+ {[%emt 0:01:43]} 60. Kc3 {[%emt 0:01:12]} f6 {[%emt 0:01:26]} 61. Rd3 {
[%emt 0:15:23]} Rh6 {[%emt 0:17:11]} 62. Rd1 {[%emt 0:00:04]} Rh8 {[%emt 0:00:
39]} 63. Rb1 {[%emt 0:00:23]} Bf2 {[%emt 0:00:21]} 64. Rb7+ {[%emt 0:00:38]}
Kg6 {[%emt 0:00:59]} 65. Rc7 {[%emt 0:00:33]} Rh1 {[%emt 0:00:32]} 66. Be4+ {
[%emt 0:00:56]} Kg5 {[%emt 0:00:17]} 67. c5 {[%emt 0:00:56]} Kf4 {[%emt 0:00:
12]} 68. Bc2 {[%emt 0:01:18]} Ke5 {[%emt 0:00:16]} 69. g4 {[%emt 0:02:33]} Rg1
{[%emt 0:00:40]} 70. c6 {[%emt 0:00:39]} 1/2-1/2

[Event "FIDE Womens Grand Swiss 2021"]
[Site "Riga"]
[Date "2021.10.30"]
[Round "4.13"]
[White "Saduakassova, Dinara"]
[Black "Bivol, Alina"]
[Result "1-0"]
[ECO "A06"]
[WhiteElo "2491"]
[BlackElo "2392"]
[Annotator "ChessBase"]
[PlyCount "153"]
[EventDate "2021.10.27"]
[EventType "swiss"]
[EventCountry "LAT"]
[Tiebreak "Cut1 Buchholz+Sonneborn-Berger (Swiss)"]
[SourceTitle "playchess.com"]
[Source "ChessBase"]
[SourceQuality "1"]
[TimeControl "40/6000+30:20/3000+30:900+30"]

1. Nf3 {[%emt 0:10:11]} d5 {[%emt 0:10:06]} 2. g3 {[%emt 0:00:10]} Nc6 {
[%emt 0:01:05]} 3. d4 {[%emt 0:06:01]} Bf5 {[%emt 0:02:01]} 4. Bg2 {[%emt 0:01:
56]} Nb4 {[%emt 0:00:24]} 5. Na3 {[%emt 0:00:26]} e6 {[%emt 0:00:08]} 6. O-O {
[%emt 0:14:23]} Nc6 {[%emt 0:00:11]} 7. c4 {[%emt 0:04:03]} Bxa3 {[%emt 0:03:
56]} 8. bxa3 {[%emt 0:00:04]} dxc4 {[%emt 0:05:18]} 9. Nh4 {[%emt 0:04:32]} Bg4
{[%emt 0:20:21]} 10. h3 {[%emt 0:13:58]} Bh5 {[%emt 0:01:24]} 11. d5 {[%emt 0:
06:26]} exd5 {[%emt 0:03:25]} 12. Bxd5 {[%emt 0:00:26]} Nge7 {[%emt 0:02:25]}
13. Bxc4 {[%emt 0:00:09]} Qxd1 {[%emt 0:09:59]} 14. Rxd1 {[%emt 0:00:04]} f6 {
[%emt 0:02:25]} 15. Nf3 {[%emt 0:08:05]} Bxf3 {[%emt 0:13:51]} 16. exf3 {
[%emt 0:00:05]} Ne5 {[%emt 0:00:07]} 17. Bb5+ {[%emt 0:02:44]} c6 {[%emt 0:01:
28]} 18. Be2 {[%emt 0:00:05]} Nd5 {[%emt 0:00:39]} 19. f4 {[%emt 0:04:21]} Nd7
{[%emt 0:00:47]} 20. Bf3 {[%emt 0:01:39]} N7b6 {[%emt 0:01:00]} 21. Bb2 {
[%emt 0:03:14]} Kf7 {[%emt 0:04:51]} 22. Bd4 {[%emt 0:00:51]} Rhd8 {[%emt 0:06:
38]} 23. Rab1 {[%emt 0:00:28]} Rd7 {[%emt 0:03:37]} 24. Rdc1 {[%emt 0:10:39]}
Ne7 {[%emt 0:02:39]} 25. Bc5 {[%emt 0:03:43]} Na4 {[%emt 0:03:11]} 26. Be3 {
[%emt 0:01:38]} Nb6 {[%emt 0:00:17]} 27. Rb3 {[%emt 0:04:17]} Nbd5 {[%emt 0:01:
34]} 28. a4 {[%emt 0:01:26]} Nxe3 {[%emt 0:01:00]} 29. fxe3 {[%emt 0:00:04]}
Rad8 {[%emt 0:00:56]} 30. a5 {[%emt 0:02:35]} Rc7 {[%emt 0:00:43]} 31. Rc2 {
[%emt 0:01:20]} Rdd7 {[%emt 0:03:29]} 32. Rcb2 {[%emt 0:01:36]} g6 {[%emt 0:00:
56]} 33. Kf2 {[%emt 0:00:40]} Nc8 {[%emt 0:00:23]} 34. a6 {[%emt 0:01:38]} bxa6
{[%emt 0:00:39]} 35. Ra3 {[%emt 0:00:15]} c5 {[%emt 0:01:12]} 36. Rc2 {[%emt 0:
01:28]} Nb6 {[%emt 0:00:26]} 37. Rac3 {[%emt 0:02:00]} c4 {[%emt 0:00:23]} 38.
Be2 {[%emt 0:00:07]} Ke6 {[%emt 0:02:31]} 39. Bxc4+ {[%emt 0:00:54]} Nxc4 {
[%emt 0:00:11]} 40. Rxc4 {[%emt 0:00:04]} Rxc4 {[%emt 0:00:12]} 41. Rxc4 {
[%emt 0:50:04]} Rd2+ {[%emt 0:50:05]} 42. Kf3 {[%emt 0:00:05]} Rxa2 {[%emt 0:
00:13]} 43. Rc7 {[%emt 0:00:07]} h5 {[%emt 0:00:53]} 44. Rxa7 {[%emt 0:00:00]}
f5 {[%emt 0:00:00]} 45. g4 {[%emt 0:00:00]} hxg4+ {[%emt 0:00:00]} 46. hxg4 {
[%emt 0:00:00]} fxg4+ {[%emt 0:00:00]} 47. Kxg4 {[%emt 0:00:00]} Kf6 {[%emt 0:
00:00]} 48. Rb7 {[%emt 0:00:00]} Ra4 {[%emt 0:00:00]} 49. Rb6+ {[%emt 0:00:00]}
Kf7 {[%emt 0:00:00]} 50. Kf3 {[%emt 0:00:00]} Ra3 {[%emt 0:00:00]} 51. Rc6 {
[%emt 0:00:00]} Kg7 {[%emt 0:00:00]} 52. Ke4 {[%emt 0:00:00]} Ra5 {[%emt 0:00:
00]} 53. Kd4 {[%emt 0:00:00]} Ra1 {[%emt 0:01:35]} 54. e4 {[%emt 0:00:00]} Kf7
{[%emt 0:00:28]} 55. Ke5 {[%emt 0:00:00]} Ra5+ {[%emt 0:03:39]} 56. Kd6 {
[%emt 0:00:00]} Ra4 {[%emt 0:01:19]} 57. Rc7+ {[%emt 0:00:00]} Kf8 {[%emt 0:01:
05]} 58. Ke5 {[%emt 0:00:00]} a5 {[%emt 0:00:28]} 59. Ra7 {[%emt 0:00:00]} Kg8
{[%emt 0:00:19]} 60. f5 {[%emt 0:05:09]} gxf5 {[%emt 0:00:13]} 61. Kxf5 {
[%emt 0:15:17]} Kf8 {[%emt 0:16:07]} 62. e5 {[%emt 0:00:05]} Ke8 {[%emt 0:01:
01]} 63. Kf6 {[%emt 0:00:52]} Kd8 {[%emt 0:01:40]} 64. Ra8+ {[%emt 0:00:13]}
Kc7 {[%emt 0:00:11]} 65. e6 {[%emt 0:00:05]} Rf4+ {[%emt 0:00:50]} 66. Ke5 {
[%emt 0:00:09]} Rf1 {[%emt 0:00:53]} 67. e7 {[%emt 0:00:06]} Re1+ {[%emt 0:00:
12]} 68. Kf6 {[%emt 0:00:05]} Kb6 {[%emt 0:00:47]} 69. e8=Q {[%emt 0:00:10]}
Rxe8 {[%emt 0:00:04]} 70. Rxe8 {[%emt 0:00:03]} Kc5 {[%emt 0:01:03]} 71. Ke5 {
[%emt 0:00:06]} a4 {[%emt 0:00:31]} 72. Ra8 {[%emt 0:00:10]} Kb4 {[%emt 0:00:
06]} 73. Kd4 {[%emt 0:00:14]} Kb3 {[%emt 0:00:42]} 74. Kd3 {[%emt 0:00:27]} a3
{[%emt 0:00:17]} 75. Rb8+ {[%emt 0:00:06]} Ka2 {[%emt 0:00:15]} 76. Kc2 {
[%emt 0:00:06]} Ka1 {[%emt 0:00:01]} 77. Rb1+ {[%emt 0:00:09]} 1-0

[Event "FIDE Womens Grand Swiss 2021"]
[Site "Riga"]
[Date "2021.10.30"]
[Round "4.14"]
[White "Stefanova, Antoaneta"]
[Black "Melia, Salome"]
[Result "1/2-1/2"]
[ECO "A04"]
[WhiteElo "2475"]
[BlackElo "2371"]
[Annotator "ChessBase"]
[PlyCount "60"]
[EventDate "2021.10.27"]
[EventType "swiss"]
[EventCountry "LAT"]
[Tiebreak "Cut1 Buchholz+Sonneborn-Berger (Swiss)"]
[SourceTitle "playchess.com"]
[Source "ChessBase"]
[SourceQuality "1"]
[TimeControl "40/6000+30:20/3000+30:900+30"]

1. Nf3 {[%emt 0:10:06]} c5 {[%emt 0:10:29]} 2. b3 {[%emt 0:00:37]} d6 {[%emt 0:
00:43]} 3. e3 {[%emt 0:08:32]} e5 {[%emt 0:02:23]} 4. d4 {[%emt 0:03:05]} cxd4
{[%emt 0:00:58]} 5. exd4 {[%emt 0:00:49]} e4 {[%emt 0:00:54]} 6. Bb5+ {[%emt 0:
04:36]} Nc6 {[%emt 0:12:06]} 7. Qe2 {[%emt 0:02:44]} d5 {[%emt 0:19:14]} 8. Ne5
{[%emt 0:06:53]} Bd7 {[%emt 0:07:03]} 9. Nxd7 {[%emt 0:06:28]} Qxd7 {[%emt 0:
00:15]} 10. c4 {[%emt 0:02:31]} Bb4+ {[%emt 0:06:04]} 11. Bd2 {[%emt 0:05:25]}
Bxd2+ {[%emt 0:00:21]} 12. Nxd2 {[%emt 0:02:24]} Nge7 {[%emt 0:02:10]} 13. cxd5
{[%emt 0:06:54]} Qxd5 {[%emt 0:01:02]} 14. Bxc6+ {[%emt 0:18:43]} Nxc6 {
[%emt 0:02:05]} 15. Qxe4+ {[%emt 0:02:49]} Qxe4+ {[%emt 0:00:09]} 16. Nxe4 {
[%emt 0:00:02]} O-O-O {[%emt 0:06:05]} 17. O-O-O {[%emt 0:00:20]} Nxd4 {
[%emt 0:01:40]} 18. Rhe1 {[%emt 0:05:17]} h6 {[%emt 0:07:07]} 19. Re3 {[%emt 0:
03:09]} Kb8 {[%emt 0:10:42]} 20. Red3 {[%emt 0:03:30]} Ne6 {[%emt 0:01:48]} 21.
Rd7 {[%emt 0:01:57]} Rxd7 {[%emt 0:01:30]} 22. Rxd7 {[%emt 0:00:05]} Rc8+ {
[%emt 0:00:08]} 23. Kd2 {[%emt 0:01:35]} Rc7 {[%emt 0:00:15]} 24. Rd5 {[%emt 0:
01:41]} Re7 {[%emt 0:01:43]} 25. g3 {[%emt 0:01:35]} Kc7 {[%emt 0:02:01]} 26.
a4 {[%emt 0:04:02]} Rd7 {[%emt 0:05:56]} 27. Rxd7+ {[%emt 0:00:15]} Kxd7 {
[%emt 0:00:04]} 28. Kd3 {[%emt 0:00:32]} Kc6 {[%emt 0:01:48]} 29. Kc4 {[%emt 0:
00:28]} a6 {[%emt 0:01:08]} 30. a5 {[%emt 0:04:29]} f5 {[%emt 0:04:44]} 1/2-1/2

[Event "FIDE Womens Grand Swiss 2021"]
[Site "Riga"]
[Date "2021.10.30"]
[Round "4.15"]
[White "Girya, Olga"]
[Black "Danielian, Elina"]
[Result "1-0"]
[ECO "A41"]
[WhiteElo "2410"]
[BlackElo "2450"]
[Annotator "ChessBase"]
[PlyCount "85"]
[EventDate "2021.10.27"]
[EventType "swiss"]
[EventCountry "LAT"]
[Tiebreak "Cut1 Buchholz+Sonneborn-Berger (Swiss)"]
[SourceTitle "playchess.com"]
[Source "ChessBase"]
[SourceQuality "1"]
[TimeControl "40/6000+30:20/3000+30:900+30"]

1. d4 {[%emt 0:10:05]} d6 {[%emt 0:10:07]} 2. Nf3 {[%emt 0:00:34]} g6 {[%emt 0:
00:11]} 3. c4 {[%emt 0:01:38]} Bg7 {[%emt 0:00:27]} 4. e4 {[%emt 0:04:16]} e5 {
[%emt 0:03:24]} 5. d5 {[%emt 0:04:49]} Ne7 {[%emt 0:00:30]} 6. Nc3 {[%emt 0:05:
06]} O-O {[%emt 0:00:49]} 7. h4 {[%emt 0:07:34]} Bg4 {[%emt 0:22:36]} 8. Qb3 {
[%emt 0:05:34]} Na6 {[%emt 0:20:11]} 9. Nh2 {[%emt 0:00:40]} Bd7 {[%emt 0:01:
36]} 10. h5 {[%emt 0:05:43]} f5 {[%emt 0:01:46]} 11. Nf3 {[%emt 0:07:48]} gxh5
{[%emt 0:05:57]} 12. Qd1 {[%emt 0:07:29]} Nc5 {[%emt 0:15:03]} 13. Nd2 {
[%emt 0:04:39]} Be8 {[%emt 0:08:27]} 14. b4 {[%emt 0:11:59]} Nxe4 {[%emt 0:00:
06]} 15. Ndxe4 {[%emt 0:00:04]} fxe4 {[%emt 0:00:04]} 16. Nxe4 {[%emt 0:00:14]}
Bg6 {[%emt 0:00:08]} 17. Bd3 {[%emt 0:00:22]} c6 {[%emt 0:01:37]} 18. O-O {
[%emt 0:08:06]} Nf5 {[%emt 0:04:51]} 19. Bg5 {[%emt 0:05:43]} Qd7 {[%emt 0:00:
59]} 20. Rc1 {[%emt 0:07:57]} Nd4 {[%emt 0:00:58]} 21. f3 {[%emt 0:01:27]} a5 {
[%emt 0:01:19]} 22. b5 {[%emt 0:03:40]} Nf5 {[%emt 0:05:22]} 23. Qd2 {[%emt 0:
04:28]} h4 {[%emt 0:00:45]} 24. Be3 {[%emt 0:01:34]} cxd5 {[%emt 0:02:32]} 25.
cxd5 {[%emt 0:00:03]} h3 {[%emt 0:00:49]} 26. g3 {[%emt 0:00:38]} Rac8 {
[%emt 0:01:01]} 27. Rxc8 {[%emt 0:00:50]} Qxc8 {[%emt 0:00:22]} 28. Kh2 {
[%emt 0:00:26]} a4 {[%emt 0:00:30]} 29. Rc1 {[%emt 0:00:56]} Qd7 {[%emt 0:00:
32]} 30. Bf1 {[%emt 0:00:24]} Nd4 {[%emt 0:00:32]} 31. Bxd4 {[%emt 0:00:31]}
exd4 {[%emt 0:00:04]} 32. Bxh3 {[%emt 0:00:08]} Qxb5 {[%emt 0:00:48]} 33. Be6+
{[%emt 0:00:06]} Kh8 {[%emt 0:00:14]} 34. Nxd6 {[%emt 0:00:27]} Qb6 {[%emt 0:
00:47]} 35. Nc4 {[%emt 0:00:11]} Qd8 {[%emt 0:00:23]} 36. f4 {[%emt 0:00:08]}
Be4 {[%emt 0:00:49]} 37. Ne5 {[%emt 0:01:29]} Bxe5 {[%emt 0:00:34]} 38. fxe5 {
[%emt 0:00:14]} d3 {[%emt 0:01:41]} 39. Rc8 {[%emt 0:00:45]} Qe7 {[%emt 0:00:
20]} 40. d6 {[%emt 0:01:09]} Qxe6 {[%emt 0:00:05]} 41. Rxf8+ {[%emt 0:50:09]}
Kg7 {[%emt 0:50:00]} 42. Rf6 {[%emt 0:00:00]} Qc8 {[%emt 0:00:00]} 43. d7 {
[%emt 0:00:00]} 1-0

[Event "FIDE Womens Grand Swiss 2021"]
[Site "Riga"]
[Date "2021.10.30"]
[Round "4.16"]
[White "Garifullina, Leya"]
[Black "Arabidze, Meri"]
[Result "1/2-1/2"]
[ECO "B42"]
[WhiteElo "2409"]
[BlackElo "2441"]
[Annotator "NA"]
[PlyCount "103"]
[EventDate "2021.10.27"]
[EventType "swiss"]
[EventCountry "LAT"]
[Tiebreak "Cut1 Buchholz+Sonneborn-Berger (Swiss)"]
[SourceTitle "playchess.com"]
[Source "ChessBase"]
[SourceQuality "1"]
[TimeControl "40/6000+30:20/3000+30:900+30"]

1. e4 {[%emt 0:10:05]} c5 {[%emt 0:10:12]} 2. Nf3 {[%emt 0:00:06]} e6 {[%emt 0:
00:03]} 3. d4 {[%emt 0:00:07]} cxd4 {[%emt 0:00:06]} 4. Nxd4 {[%emt 0:00:04]}
a6 {[%emt 0:00:05]} 5. Bd3 {[%emt 0:00:23]} Nf6 {[%emt 0:00:06]} 6. Qe2 {
[%emt 0:00:27]} e5 {[%emt 0:02:38]} 7. Nb3 {[%emt 0:01:42]} Nc6 {[%emt 0:01:07]
} 8. O-O {[%emt 0:01:15]} d6 {[%emt 0:00:40]} 9. c4 {[%emt 0:00:36]} Be7 {
[%emt 0:01:55]} 10. Nc3 {[%emt 0:01:15]} O-O {[%emt 0:01:10]} 11. h3 {[%emt 0:
03:54]} Be6 {[%emt 0:00:31]} 12. Nd5 {[%emt 0:04:20]} Nd7 {[%emt 0:02:26]} 13.
Be3 {[%emt 0:02:54]} a5 {[%emt 0:04:04]} 14. Qd2 {[%emt 0:07:47]} a4 {[%emt 0:
03:52]} 15. Nc1 {[%emt 0:00:52]} h6 {[%emt 0:02:00]} 16. Ne2 {[%emt 0:08:39]}
Bg5 {[%emt 0:02:17]} 17. Nec3 {[%emt 0:09:17]} Nc5 {[%emt 0:06:26]} 18. Rad1 {
[%emt 0:03:17]} Bxe3 {[%emt 0:06:38]} 19. Qxe3 {[%emt 0:00:44]} Bxd5 {[%emt 0:
11:26]} 20. exd5 {[%emt 0:03:39]} Nb4 $14 {[%emt 0:04:44]} ({Black should play
} 20... Nd4 $11) 21. Bb1 {[%emt 0:00:41]} f5 {[%emt 0:10:53]} 22. a3 {[%emt 0:
06:25]} Nba6 {[%emt 0:00:29]} 23. f4 {[%emt 0:00:19]} e4 {[%emt 0:01:33]} 24.
Rf2 {[%emt 0:02:25]} Qd7 {[%emt 0:03:55]} 25. Kh2 {[%emt 0:02:01]} Nc7 {
[%emt 0:07:05]} 26. Rg1 {[%emt 0:05:46]} Rae8 {[%emt 0:00:30]} 27. Bc2 {
[%emt 0:01:45]} Re7 {[%emt 0:02:42]} 28. Qd4 {[%emt 0:01:40]} Qe8 {[%emt 0:05:
23]} 29. Qd1 {[%emt 0:03:58]} Qf7 {[%emt 0:08:55]} 30. Nxa4 {[%emt 0:04:37]} e3
{[%emt 0:03:19]} 31. Re2 {[%emt 0:00:12]} Nxa4 {[%emt 0:00:42]} 32. Bxa4 {
[%emt 0:00:03]} g5 {[%emt 0:02:04]} 33. Bc2 {[%emt 0:03:17]} Qf6 {[%emt 0:00:
38]} 34. Rf1 {[%emt 0:02:51]} Qxb2 {[%emt 0:00:45]} 35. Bxf5 {[%emt 0:01:59]}
Qc3 {[%emt 0:00:57]} 36. Be6+ {[%emt 0:03:38]} Nxe6 {[%emt 0:02:53]} 37. dxe6 {
[%emt 0:00:07]} Rxf4 {[%emt 0:01:44]} 38. Rxf4 {[%emt 0:05:55]} gxf4 {[%emt 0:
00:38]} 39. Qxd6 {[%emt 0:00:11]} Qf6 {[%emt 0:00:18]} 40. c5 {[%emt 0:00:59]}
Kg7 {[%emt 0:01:44]} 41. c6 {[%emt 0:54:48]} Rxe6 {[%emt 0:27:51]} 42. Qd7+ {
[%emt 0:00:00]} Re7 {[%emt 0:00:13]} 43. Qg4+ {[%emt 0:00:00]} Qg5 {[%emt 0:02:
02]} 44. cxb7 {[%emt 0:00:00]} Rxb7 {[%emt 0:02:58]} 45. g3 {[%emt 0:00:00]}
Qxg4 {[%emt 0:06:10]} 46. hxg4 {[%emt 0:00:00]} Rd7 {[%emt 0:01:01]} 47. Kg2 {
[%emt 0:00:00]} Rd2 {[%emt 0:00:23]} 48. Kf3 {[%emt 0:00:00]} fxg3 {[%emt 0:00:
29]} 49. Rxe3 {[%emt 0:00:00]} g2 {[%emt 0:00:12]} 50. Re1 {[%emt 0:00:00]} Ra2
{[%emt 0:00:16]} 51. Rg1 {[%emt 0:00:00]} Rxa3+ {[%emt 0:00:14]} 52. Kxg2 {
[%emt 0:00:00]} 1/2-1/2

[Event "FIDE Womens Grand Swiss 2021"]
[Site "Riga"]
[Date "2021.10.30"]
[Round "4.17"]
[White "Cyfka, Karina"]
[Black "Munguntuul, Batkhuyag"]
[Result "0-1"]
[ECO "D43"]
[WhiteElo "2409"]
[BlackElo "2433"]
[Annotator "NA"]
[PlyCount "76"]
[EventDate "2021.10.27"]
[EventType "swiss"]
[EventCountry "LAT"]
[Tiebreak "Cut1 Buchholz+Sonneborn-Berger (Swiss)"]
[SourceTitle "playchess.com"]
[Source "ChessBase"]
[SourceQuality "1"]
[TimeControl "40/6000+30:20/3000+30:900+30"]

1. d4 {[%emt 0:10:04]} d5 {[%emt 0:10:03]} 2. c4 {[%emt 0:00:18]} c6 {[%emt 0:
00:04]} 3. Nf3 {[%emt 0:00:16]} Nf6 {[%emt 0:00:05]} 4. Nc3 {[%emt 0:00:16]} e6
{[%emt 0:06:15]} 5. Qd3 {[%emt 0:00:23]} dxc4 {[%emt 0:04:10]} 6. Qxc4 {
[%emt 0:00:06]} b5 {[%emt 0:00:28]} 7. Qd3 {[%emt 0:00:38]} b4 {[%emt 0:10:20]}
8. Na4 {[%emt 0:00:44]} Qa5 {[%emt 0:06:12]} 9. b3 {[%emt 0:00:25]} Ba6 {
[%emt 0:00:08]} 10. Qc2 {[%emt 0:01:51]} Nbd7 {[%emt 0:00:23]} 11. e4 {[%emt 0:
01:24]} Bxf1 {[%emt 0:07:00]} 12. Kxf1 {[%emt 0:01:10]} c5 {[%emt 0:04:11]} 13.
d5 {[%emt 0:13:16]} exd5 {[%emt 0:11:20]} 14. exd5 {[%emt 0:00:27]} Be7 {
[%emt 0:00:11]} 15. Bg5 {[%emt 0:21:44]} O-O {[%emt 0:04:51]} 16. Rd1 {[%emt 0:
01:04]} Rfd8 {[%emt 0:05:05]} 17. d6 {[%emt 0:14:14]} Bf8 {[%emt 0:00:41]} 18.
Nd2 {[%emt 0:01:14]} c4 {[%emt 0:03:00]} 19. h4 {[%emt 0:03:40]} cxb3 {[%emt 0:
10:31]} 20. axb3 {[%emt 0:00:24]} h6 {[%emt 0:00:12]} 21. Nc4 {[%emt 0:11:16]}
Qb5 {[%emt 0:00:29]} 22. Bf4 {[%emt 0:00:59]} Nd5 {[%emt 0:01:16]} 23. Bg3 {
[%emt 0:02:07]} N7b6 {[%emt 0:05:00]} 24. Nab2 {[%emt 0:01:31]} Bxd6 {[%emt 0:
01:21]} 25. Bxd6 {[%emt 0:02:38]} Rxd6 {[%emt 0:00:02]} 26. Kg1 {[%emt 0:00:42]
} Rf6 {[%emt 0:03:07]} 27. Rh3 {[%emt 0:01:11]} Nc3 {[%emt 0:03:25]} 28. Re1 {
[%emt 0:00:29]} Nbd5 {[%emt 0:00:40]} 29. Ne3 {[%emt 0:03:25]} Nf4 {[%emt 0:00:
22]} 30. Rg3 {[%emt 0:02:57]} Nfe2+ {[%emt 0:00:13]} 31. Kh2 {[%emt 0:00:04]}
Nxg3 {[%emt 0:00:09]} 32. fxg3 {[%emt 0:00:06]} Re8 {[%emt 0:01:42]} 33. Nbc4 {
[%emt 0:00:21]} Rfe6 {[%emt 0:00:39]} 34. Qd2 {[%emt 0:05:13]} Qc5 {[%emt 0:00:
39]} 35. Qd7 {[%emt 0:01:07]} Nd5 {[%emt 0:04:01]} 36. Nxd5 {[%emt 0:02:00]}
Rxe1 {[%emt 0:00:09]} 37. Nf4 {[%emt 0:01:03]} h5 {[%emt 0:01:02]} 38. g4 {
[%emt 0:00:54]} Qg1+ {[%emt 0:00:16]} 0-1